[Event "Titled Tuesday Blitz April 19 Late 2022"]
[White "Sarana, Alexey"]
[Black "Gledura, Benjamin"]
[WhiteFideId "24133795"]
[BlackFideId "712779"]
[WhiteElo "2666"]
[BlackElo "2326"]
[Result "0-1"]
[Round "10"]
[TimeControl "180+1"]
[Date "2022.04.19"]
[WhiteClock "0:00:01"]
[BlackClock "0:00:49"]

1. d4 {[%clk 0:02:59]}  Nf6 {[%clk 0:02:58]} 2. c4 {[%clk 0:02:59]}  g6 {[%clk 0:02:58]} 3. Nc3 {[%clk 0:02:59]}  d5 {[%clk 0:02:58]} 4. cxd5 {[%clk 0:02:58]}  Nxd5 {[%clk 0:02:59]} 5. e4 {[%clk 0:02:58]}  Nxc3 {[%clk 0:02:59]} 6. bxc3 {[%clk 0:02:59]}  Bg7 {[%clk 0:02:59]} 7. Bc4 {[%clk 0:03:00]}  c5 {[%clk 0:02:59]} 8. Ne2 {[%clk 0:03:00]}  Nc6 {[%clk 0:02:59]} 9. Be3 {[%clk 0:03:00]}  O-O {[%clk 0:02:59]} 10. Rc1 {[%clk 0:03:00]}  b6 {[%clk 0:02:55]} 11. h4 {[%clk 0:02:58]}  h5 {[%clk 0:02:53]} 12. f3 {[%clk 0:02:51]}  e6 {[%clk 0:02:52]} 13. dxc5 {[%clk 0:02:39]}  Ne5 {[%clk 0:02:48]} 14. Qb3 {[%clk 0:02:19]}  b5 {[%clk 0:02:32]} 15. Bxb5 {[%clk 0:02:18]}  Rb8 {[%clk 0:02:33]} 16. Rd1 {[%clk 0:01:26]}  Qa5 {[%clk 0:02:31]} 17. Nd4 {[%clk 0:01:25]}  a6 {[%clk 0:02:22]} 18. a4 {[%clk 0:01:07]}  axb5 {[%clk 0:02:16]} 19. axb5 {[%clk 0:01:08]}  Bd7 {[%clk 0:02:13]} 20. O-O {[%clk 0:00:37]}  Bxb5 {[%clk 0:02:10]} 21. Ra1 {[%clk 0:00:37]}  Bxf1 {[%clk 0:02:10]} 22. Rxa5 {[%clk 0:00:37]}  Rxb3 {[%clk 0:02:08]} 23. Nxb3 {[%clk 0:00:38]}  Rb8 {[%clk 0:01:56]} 24. Nd4 {[%clk 0:00:27]}  Nc4 {[%clk 0:01:51]} 25. Nc6 {[%clk 0:00:23]}  Nxa5 {[%clk 0:01:41]} 26. Nxb8 {[%clk 0:00:23]}  Bb5 {[%clk 0:01:42]} 27. Bd4 {[%clk 0:00:23]}  Nc6 {[%clk 0:01:41]} 28. Bxg7 {[%clk 0:00:19]}  Kxg7 {[%clk 0:01:38]} 29. Nd7 {[%clk 0:00:18]}  f6 {[%clk 0:01:31]} 30. Kf2 {[%clk 0:00:19]}  Kf7 {[%clk 0:01:31]} 31. Ke3 {[%clk 0:00:18]}  Ke7 {[%clk 0:01:31]} 32. Nb6 {[%clk 0:00:18]}  Kd8 {[%clk 0:01:26]} 33. c4 {[%clk 0:00:17]}  Ba6 {[%clk 0:01:25]} 34. Kd3 {[%clk 0:00:18]}  Kc7 {[%clk 0:01:25]} 35. Kc3 {[%clk 0:00:18]}  Ne5 {[%clk 0:01:23]} 36. Kd4 {[%clk 0:00:14]}  Kc6 {[%clk 0:01:23]} 37. f4 {[%clk 0:00:12]}  Nd7 {[%clk 0:01:21]} 38. Na4 {[%clk 0:00:09]}  e5+ {[%clk 0:01:21]} 39. fxe5 {[%clk 0:00:09]}  fxe5+ {[%clk 0:01:21]} 40. Ke3 {[%clk 0:00:10]}  Nxc5 {[%clk 0:01:21]} 41. Nb2 {[%clk 0:00:10]}  Bc8 {[%clk 0:01:18]} 42. Nd1 {[%clk 0:00:10]}  Be6 {[%clk 0:01:17]} 43. Nf2 {[%clk 0:00:10]}  Bxc4 {[%clk 0:01:16]} 44. g4 {[%clk 0:00:10]}  Be6 {[%clk 0:01:15]} 45. gxh5 {[%clk 0:00:11]}  gxh5 {[%clk 0:01:16]} 46. Nh1 {[%clk 0:00:10]}  Bg4 {[%clk 0:01:15]} 47. Ng3 {[%clk 0:00:10]}  Ne6 {[%clk 0:01:14]} 48. Nf1 {[%clk 0:00:08]}  Nf4 {[%clk 0:01:14]} 49. Kf2 {[%clk 0:00:09]}  Kc5 {[%clk 0:01:12]} 50. Nd2 {[%clk 0:00:04]}  Kd4 {[%clk 0:01:11]} 51. Kg3 {[%clk 0:00:05]}  Ne2+ {[%clk 0:01:09]} 52. Kf2 {[%clk 0:00:05]}  Nc3 {[%clk 0:01:09]} 53. Nb3+ {[%clk 0:00:05]}  Kxe4 {[%clk 0:01:09]} 54. Nc5+ {[%clk 0:00:03]}  Kd5 {[%clk 0:01:08]} 55. Nd3 {[%clk 0:00:02]}  Kd4 {[%clk 0:01:07]} 56. Nb4 {[%clk 0:00:03]}  Ne4+ {[%clk 0:01:07]} 57. Kg2 {[%clk 0:00:03]}  Nc5 {[%clk 0:01:04]} 58. Nc6+ {[%clk 0:00:03]}  Kd5 {[%clk 0:01:03]} 59. Ne7+ {[%clk 0:00:03]}  Ke6 {[%clk 0:01:00]} 60. Nc6 {[%clk 0:00:03]}  Ne4 {[%clk 0:00:55]} 61. Nb4 {[%clk 0:00:03]}  Nf6 {[%clk 0:00:52]} 62. Nc2 {[%clk 0:00:02]}  Kf5 {[%clk 0:00:49]} 63. Ne3+ {[%clk 0:00:01]}  Kf4 {[%clk 0:00:50]} 64. Nc4 {[%clk 0:00:02]}  Bf3+ {[%clk 0:00:50]} 65. Kh3 {[%clk 0:00:02]}  e4 {[%clk 0:00:49]} 66. Nb2 {[%clk 0:00:01]}  e3 {[%clk 0:00:50]} 67. Nd3+ {[%clk 0:00:02]}  Ke4 {[%clk 0:00:49]} 68. Nc5+ {[%clk 0:00:02]}  Kd4 {[%clk 0:00:50]} 69. Ne6+ {[%clk 0:00:03]}  Ke5 {[%clk 0:00:48]} 70. Ng5 {[%clk 0:00:02]}  Bg4+ {[%clk 0:00:48]} 71. Kg2 {[%clk 0:00:03]}  e2 {[%clk 0:00:49]} 72. Nf7+ {[%clk 0:00:02]}  Kf4 {[%clk 0:00:49]} 73. Kf2 {[%clk 0:00:02]}  Ne4+ {[%clk 0:00:49]} 74. Ke1 {[%clk 0:00:02]}  Kg3 {[%clk 0:00:49]} 75. Ne5 {[%clk 0:00:01]}  Kxh4 {[%clk 0:00:50]} 76. Nd3 {[%clk 0:00:01]}  Kg3 {[%clk 0:00:49]} 0-1


[Site "https://www.chess.com"]

[Event "Titled Tuesday Blitz April 19 Late 2022"]
[White "Sarkar, Justin"]
[Black "Krishnakumar, Sriram"]
[WhiteFideId "2010011"]
[BlackFideId "30915856"]
[WhiteElo "2038"]
[BlackElo "2424"]
[Result "1-0"]
[Round "10"]
[TimeControl "180+1"]
[Date "2022.04.19"]
[WhiteClock "0:00:15"]
[BlackClock "0:00:43"]

1. e4 {[%clk 0:02:59]}  e5 {[%clk 0:02:59]} 2. Nc3 {[%clk 0:02:58]}  Nf6 {[%clk 0:02:58]} 3. Bc4 {[%clk 0:02:58]}  Nc6 {[%clk 0:02:55]} 4. d3 {[%clk 0:02:57]}  Bc5 {[%clk 0:02:56]} 5. Bg5 {[%clk 0:02:51]}  h6 {[%clk 0:02:53]} 6. Bh4 {[%clk 0:02:48]}  g5 {[%clk 0:02:50]} 7. Bg3 {[%clk 0:02:47]}  d6 {[%clk 0:02:50]} 8. Na4 {[%clk 0:02:43]}  Bg4 {[%clk 0:02:41]} 9. f3 {[%clk 0:02:32]}  Bc8 {[%clk 0:02:09]} 10. Nxc5 {[%clk 0:02:31]}  dxc5 {[%clk 0:02:10]} 11. c3 {[%clk 0:02:29]}  O-O {[%clk 0:02:07]} 12. Ne2 {[%clk 0:02:22]}  a6 {[%clk 0:02:03]} 13. h4 {[%clk 0:02:12]}  Kg7 {[%clk 0:01:59]} 14. hxg5 {[%clk 0:02:08]}  hxg5 {[%clk 0:02:00]} 15. Qd2 {[%clk 0:02:05]}  Nh7 {[%clk 0:01:58]} 16. O-O-O {[%clk 0:01:59]}  Rh8 {[%clk 0:01:56]} 17. Bd5 {[%clk 0:01:43]}  f6 {[%clk 0:01:55]} 18. Bxc6 {[%clk 0:01:40]}  bxc6 {[%clk 0:01:56]} 19. Bf2 {[%clk 0:01:38]}  Be6 {[%clk 0:01:51]} 20. c4 {[%clk 0:01:28]}  Qe7 {[%clk 0:01:38]} 21. Qa5 {[%clk 0:01:26]}  Qf7 {[%clk 0:01:32]} 22. Bxc5 {[%clk 0:01:19]}  Rhb8 {[%clk 0:01:30]} 23. b3 {[%clk 0:01:15]}  Nf8 {[%clk 0:01:27]} 24. Bxf8+ {[%clk 0:01:05]}  Rxf8 {[%clk 0:01:26]} 25. d4 {[%clk 0:01:02]}  exd4 {[%clk 0:01:12]} 26. Nxd4 {[%clk 0:01:00]}  Bd7 {[%clk 0:01:13]} 27. Qxc7 {[%clk 0:00:54]}  Rac8 {[%clk 0:01:03]} 28. Qxd7 {[%clk 0:00:48]}  Qxd7 {[%clk 0:01:01]} 29. Nf5+ {[%clk 0:00:48]}  Qxf5 {[%clk 0:01:02]} 30. exf5 {[%clk 0:00:48]}  Rf7 {[%clk 0:01:00]} 31. Rhe1 {[%clk 0:00:45]}  Rh8 {[%clk 0:00:58]} 32. Re6 {[%clk 0:00:40]}  Rh2 {[%clk 0:00:56]} 33. Rd2 {[%clk 0:00:39]}  c5 {[%clk 0:00:54]} 34. Rxa6 {[%clk 0:00:38]}  Re7 {[%clk 0:00:54]} 35. Rc6 {[%clk 0:00:34]}  Re1+ {[%clk 0:00:53]} 36. Kc2 {[%clk 0:00:34]}  Rg1 {[%clk 0:00:53]} 37. g4 {[%clk 0:00:32]}  Rxd2+ {[%clk 0:00:52]} 38. Kxd2 {[%clk 0:00:31]}  Rg2+ {[%clk 0:00:53]} 39. Ke3 {[%clk 0:00:29]}  Rxa2 {[%clk 0:00:54]} 40. Rxc5 {[%clk 0:00:28]}  Rb2 {[%clk 0:00:54]} 41. Rb5 {[%clk 0:00:27]}  Kf7 {[%clk 0:00:51]} 42. Rb7+ {[%clk 0:00:27]}  Ke8 {[%clk 0:00:51]} 43. c5 {[%clk 0:00:27]}  Rc2 {[%clk 0:00:49]} 44. b4 {[%clk 0:00:24]}  Rc3+ {[%clk 0:00:48]} 45. Ke4 {[%clk 0:00:23]}  Rb3 {[%clk 0:00:46]} 46. c6 {[%clk 0:00:21]}  Kd8 {[%clk 0:00:46]} 47. b5 {[%clk 0:00:20]}  Kc8 {[%clk 0:00:45]} 48. Kd5 {[%clk 0:00:17]}  Re3 {[%clk 0:00:44]} 49. Rf7 {[%clk 0:00:16]}  Rxf3 {[%clk 0:00:43]} 50. b6 {[%clk 0:00:15]} 1-0


[Site "https://www.chess.com"]

[Event "Titled Tuesday Blitz April 19 Late 2022"]
[White "Skliarov, Viktor"]
[Black "Nathan, Nitish"]
[WhiteFideId "14106736"]
[BlackFideId "30927870"]
[WhiteElo "2229"]
[BlackElo "2319"]
[Result "1-0"]
[Round "10"]
[TimeControl "180+1"]
[Date "2022.04.19"]
[WhiteClock "0:00:52"]
[BlackClock "0:01:44"]

1. e4 {[%clk 0:03:00]}  c5 {[%clk 0:02:59]} 2. Nf3 {[%clk 0:03:00]}  Nc6 {[%clk 0:02:58]} 3. Bb5 {[%clk 0:03:00]}  g6 {[%clk 0:02:58]} 4. O-O {[%clk 0:03:01]}  Bg7 {[%clk 0:02:57]} 5. Re1 {[%clk 0:02:49]}  e5 {[%clk 0:02:57]} 6. Bxc6 {[%clk 0:02:46]}  bxc6 {[%clk 0:02:56]} 7. c3 {[%clk 0:02:46]}  Ne7 {[%clk 0:02:53]} 8. d4 {[%clk 0:02:45]}  cxd4 {[%clk 0:02:52]} 9. cxd4 {[%clk 0:02:46]}  exd4 {[%clk 0:02:53]} 10. Nxd4 {[%clk 0:02:46]}  O-O {[%clk 0:02:53]} 11. Nc3 {[%clk 0:02:46]}  Rb8 {[%clk 0:02:53]} 12. b3 {[%clk 0:02:38]}  c5 {[%clk 0:02:51]} 13. Nde2 {[%clk 0:02:31]}  d5 {[%clk 0:02:47]} 14. exd5 {[%clk 0:02:21]}  Nxd5 {[%clk 0:02:47]} 15. Qxd5 {[%clk 0:01:48]}  Qxd5 {[%clk 0:02:44]} 16. Nxd5 {[%clk 0:01:49]}  Bxa1 {[%clk 0:02:45]} 17. Bf4 {[%clk 0:01:50]}  Be6 {[%clk 0:02:31]} 18. Ne7+ {[%clk 0:01:27]}  Kg7 {[%clk 0:02:27]} 19. Bxb8 {[%clk 0:01:26]}  Bf6 {[%clk 0:02:19]} 20. Bd6 {[%clk 0:01:25]}  Rd8 {[%clk 0:02:19]} 21. Bxc5 {[%clk 0:01:15]}  Rd7 {[%clk 0:01:55]} 22. Nc6 {[%clk 0:01:11]}  Rc7 {[%clk 0:01:55]} 23. Ned4 {[%clk 0:01:11]}  Bxd4 {[%clk 0:01:53]} 24. Bxd4+ {[%clk 0:01:11]}  Kg8 {[%clk 0:01:54]} 25. Ne5 {[%clk 0:01:08]}  Rc2 {[%clk 0:01:51]} 26. Ra1 {[%clk 0:00:59]}  Rd2 {[%clk 0:01:50]} 27. Bxa7 {[%clk 0:00:57]}  Bf5 {[%clk 0:01:45]} 28. Be3 {[%clk 0:00:55]}  Rd8 {[%clk 0:01:43]} 29. a4 {[%clk 0:00:53]}  Ra8 {[%clk 0:01:44]} 30. a5 {[%clk 0:00:53]}  Bd7 {[%clk 0:01:44]} 31. a6 {[%clk 0:00:52]} 1-0


[Site "https://www.chess.com"]

[Event "Titled Tuesday Blitz April 19 Late 2022"]
[White "Tsukerman, Julia"]
[Black "Zong, Davis"]
[WhiteFideId "2621649"]
[BlackFideId "30903955"]
[WhiteElo "2234"]
[BlackElo "2061"]
[Result "0-1"]
[Round "10"]
[TimeControl "180+1"]
[Date "2022.04.19"]
[WhiteClock "0:01:09"]
[BlackClock "0:00:28"]

1. e4 {[%clk 0:02:59]}  c5 {[%clk 0:02:59]} 2. Nf3 {[%clk 0:02:56]}  d6 {[%clk 0:03:00]} 3. d4 {[%clk 0:02:52]}  cxd4 {[%clk 0:03:01]} 4. Nxd4 {[%clk 0:02:53]}  Nf6 {[%clk 0:03:01]} 5. Nc3 {[%clk 0:02:53]}  a6 {[%clk 0:03:02]} 6. Be3 {[%clk 0:02:49]}  e6 {[%clk 0:02:57]} 7. f3 {[%clk 0:02:41]}  Be7 {[%clk 0:02:54]} 8. Qd2 {[%clk 0:02:41]}  Qc7 {[%clk 0:02:53]} 9. O-O-O {[%clk 0:02:41]}  b5 {[%clk 0:02:53]} 10. Kb1 {[%clk 0:02:39]}  O-O {[%clk 0:02:53]} 11. g4 {[%clk 0:02:39]}  b4 {[%clk 0:02:49]} 12. Nce2 {[%clk 0:02:38]}  d5 {[%clk 0:02:43]} 13. g5 {[%clk 0:02:35]}  Nfd7 {[%clk 0:02:37]} 14. exd5 {[%clk 0:02:35]}  exd5 {[%clk 0:02:33]} 15. h4 {[%clk 0:02:30]}  Ne5 {[%clk 0:02:28]} 16. Nf4 {[%clk 0:02:28]}  Bb7 {[%clk 0:02:10]} 17. Be2 {[%clk 0:02:24]}  Nc4 {[%clk 0:02:02]} 18. Bxc4 {[%clk 0:02:21]}  dxc4 {[%clk 0:02:02]} 19. Nf5 {[%clk 0:02:17]}  Nc6 {[%clk 0:01:31]} 20. Nd5 {[%clk 0:02:13]}  Qe5 {[%clk 0:01:24]} 21. Nfxe7+ {[%clk 0:01:49]}  Nxe7 {[%clk 0:01:24]} 22. Nxe7+ {[%clk 0:01:44]}  Qxe7 {[%clk 0:01:25]} 23. Qf2 {[%clk 0:01:39]}  Rfc8 {[%clk 0:01:18]} 24. Bd4 {[%clk 0:01:34]}  c3 {[%clk 0:01:11]} 25. b3 {[%clk 0:01:33]}  a5 {[%clk 0:01:07]} 26. Rhe1 {[%clk 0:01:33]}  Qc7 {[%clk 0:01:05]} 27. Be5 {[%clk 0:01:31]}  Qc6 {[%clk 0:01:01]} 28. f4 {[%clk 0:01:29]}  a4 {[%clk 0:00:59]} 29. Rd6 {[%clk 0:01:20]}  Qb5 {[%clk 0:00:51]} 30. Rc1 {[%clk 0:01:16]}  axb3 {[%clk 0:00:48]} 31. cxb3 {[%clk 0:01:12]}  Be4+ {[%clk 0:00:46]} 32. Ka1 {[%clk 0:01:12]}  c2 {[%clk 0:00:32]} 33. Qd4 {[%clk 0:01:09]}  Rxa2+ {[%clk 0:00:28]} 0-1


[Site "https://www.chess.com"]

[Event "Titled Tuesday Blitz April 19 Late 2022"]
[White "Urazayev, Arystanbek"]
[Black "Herrera Reyes, Jose Antonio"]
[WhiteFideId "13709810"]
[BlackFideId "2274914"]
[WhiteElo "2422"]
[BlackElo "2361"]
[Result "0-1"]
[Round "10"]
[TimeControl "180+1"]
[Date "2022.04.19"]
[WhiteClock "0:00:01"]
[BlackClock "0:00:26"]

1. d4 {[%clk 0:03:00]}  Nf6 {[%clk 0:02:59]} 2. c4 {[%clk 0:03:01]}  c5 {[%clk 0:02:59]} 3. d5 {[%clk 0:03:01]}  b5 {[%clk 0:02:59]} 4. cxb5 {[%clk 0:03:01]}  a6 {[%clk 0:03:00]} 5. bxa6 {[%clk 0:03:02]}  g6 {[%clk 0:03:00]} 6. Nc3 {[%clk 0:03:02]}  Bg7 {[%clk 0:03:00]} 7. e4 {[%clk 0:03:02]}  O-O {[%clk 0:03:00]} 8. e5 {[%clk 0:03:03]}  Ne8 {[%clk 0:03:00]} 9. h4 {[%clk 0:03:03]}  d6 {[%clk 0:02:57]} 10. e6 {[%clk 0:03:03]}  fxe6 {[%clk 0:02:56]} 11. h5 {[%clk 0:03:03]}  Bxa6 {[%clk 0:02:49]} 12. hxg6 {[%clk 0:03:00]}  Bxf1 {[%clk 0:02:47]} 13. Kxf1 {[%clk 0:02:51]}  Nf6 {[%clk 0:02:45]} 14. Bg5 {[%clk 0:02:42]}  Nbd7 {[%clk 0:02:44]} 15. dxe6 {[%clk 0:02:41]}  Ne5 {[%clk 0:02:45]} 16. gxh7+ {[%clk 0:02:33]}  Kh8 {[%clk 0:02:44]} 17. Nf3 {[%clk 0:02:30]}  Nxf3 {[%clk 0:02:35]} 18. Qxf3 {[%clk 0:02:28]}  Qb6 {[%clk 0:02:35]} 19. Qe2 {[%clk 0:02:12]}  Ng4 {[%clk 0:02:26]} 20. f3 {[%clk 0:01:30]}  Rf5 {[%clk 0:02:24]} 21. Bxe7 {[%clk 0:01:22]}  Re8 {[%clk 0:02:24]} 22. Rh4 {[%clk 0:01:14]}  Ne3+ {[%clk 0:02:19]} 23. Qxe3 {[%clk 0:01:10]}  Qxb2 {[%clk 0:02:19]} 24. Rb1 {[%clk 0:00:59]}  Qc2 {[%clk 0:02:03]} 25. Rc1 {[%clk 0:00:40]}  Qb2 {[%clk 0:02:00]} 26. Bxd6 {[%clk 0:00:33]}  Rxe6 {[%clk 0:01:40]} 27. Ne4 {[%clk 0:00:28]}  Bd4 {[%clk 0:01:36]} 28. Qe1 {[%clk 0:00:10]}  Rg6 {[%clk 0:01:20]} 29. Bg3 {[%clk 0:00:10]}  Qxa2 {[%clk 0:01:05]} 30. Bf2 {[%clk 0:00:10]}  Rf8 {[%clk 0:00:56]} 31. Bxd4+ {[%clk 0:00:09]}  cxd4 {[%clk 0:00:56]} 32. Qd2 {[%clk 0:00:08]}  Qa6+ {[%clk 0:00:54]} 33. Kg1 {[%clk 0:00:08]}  Qa7 {[%clk 0:00:48]} 34. Nf2 {[%clk 0:00:08]}  Rd6 {[%clk 0:00:46]} 35. Qd3 {[%clk 0:00:06]}  Re8 {[%clk 0:00:43]} 36. Rd1 {[%clk 0:00:06]}  Re3 {[%clk 0:00:41]} 37. Qf5 {[%clk 0:00:04]}  Qe7 {[%clk 0:00:35]} 38. Rg4 {[%clk 0:00:02]}  Rh6 {[%clk 0:00:29]} 39. Nh3 {[%clk 0:00:01]}  Rxh7 {[%clk 0:00:26]} 0-1


[Site "https://www.chess.com"]

[Event "Titled Tuesday Blitz April 19 Late 2022"]
[White "Vujic, Mihailo"]
[Black "Rosen, Eric"]
[WhiteFideId "918873"]
[BlackFideId "2032562"]
[WhiteElo "2256"]
[BlackElo "2362"]
[Result "0-1"]
[Round "10"]
[TimeControl "180+1"]
[Date "2022.04.19"]
[WhiteClock "0:00:02"]
[BlackClock "0:00:04"]

1. e4 {[%clk 0:02:59]}  e5 {[%clk 0:02:55]} 2. Bc4 {[%clk 0:02:58]}  Nc6 {[%clk 0:02:53]} 3. d3 {[%clk 0:02:58]}  Nf6 {[%clk 0:02:52]} 4. Nc3 {[%clk 0:02:55]}  Na5 {[%clk 0:02:51]} 5. f4 {[%clk 0:02:54]}  Nxc4 {[%clk 0:02:49]} 6. dxc4 {[%clk 0:02:55]}  d6 {[%clk 0:02:48]} 7. fxe5 {[%clk 0:02:51]}  Ng4 {[%clk 0:02:43]} 8. Nf3 {[%clk 0:02:45]}  Nxe5 {[%clk 0:02:31]} 9. Nxe5 {[%clk 0:02:45]}  dxe5 {[%clk 0:02:32]} 10. Qxd8+ {[%clk 0:02:44]}  Kxd8 {[%clk 0:02:32]} 11. Be3 {[%clk 0:02:41]}  c6 {[%clk 0:02:30]} 12. O-O-O+ {[%clk 0:02:40]}  Kc7 {[%clk 0:02:30]} 13. c5 {[%clk 0:02:38]}  Be6 {[%clk 0:02:18]} 14. Rd2 {[%clk 0:02:37]}  Be7 {[%clk 0:02:14]} 15. Nd5+ {[%clk 0:02:28]}  cxd5 {[%clk 0:01:56]} 16. exd5 {[%clk 0:02:29]}  Bxd5 {[%clk 0:01:42]} 17. Rxd5 {[%clk 0:02:28]}  f6 {[%clk 0:01:43]} 18. Rhd1 {[%clk 0:02:27]}  Rhd8 {[%clk 0:01:41]} 19. c4 {[%clk 0:02:26]}  a5 {[%clk 0:01:17]} 20. Kc2 {[%clk 0:02:13]}  Kc6 {[%clk 0:01:11]} 21. Kb3 {[%clk 0:01:51]}  h5 {[%clk 0:01:07]} 22. Ka4 {[%clk 0:01:46]}  g6 {[%clk 0:00:37]} 23. a3 {[%clk 0:01:26]}  f5 {[%clk 0:00:31]} 24. Rxd8 {[%clk 0:00:41]}  Rxd8 {[%clk 0:00:29]} 25. Rxd8 {[%clk 0:00:39]}  Bxd8 {[%clk 0:00:30]} 26. b4 {[%clk 0:00:38]}  axb4 {[%clk 0:00:26]} 27. axb4 {[%clk 0:00:39]}  f4 {[%clk 0:00:20]} 28. b5+ {[%clk 0:00:35]}  Kd7 {[%clk 0:00:21]} 29. Bd2 {[%clk 0:00:24]}  g5 {[%clk 0:00:21]} 30. Kb3 {[%clk 0:00:13]}  Be7 {[%clk 0:00:20]} 31. Bb4 {[%clk 0:00:12]}  Kc8 {[%clk 0:00:17]} 32. Kc2 {[%clk 0:00:10]}  e4 {[%clk 0:00:18]} 33. Kd2 {[%clk 0:00:08]}  b6 {[%clk 0:00:15]} 34. Ke2 {[%clk 0:00:06]}  bxc5 {[%clk 0:00:14]} 35. Bc3 {[%clk 0:00:05]}  Bd6 {[%clk 0:00:12]} 36. Bf6 {[%clk 0:00:03]}  g4 {[%clk 0:00:12]} 37. Bg5 {[%clk 0:00:03]}  f3+ {[%clk 0:00:12]} 38. gxf3 {[%clk 0:00:03]}  exf3+ {[%clk 0:00:13]} 39. Kf2 {[%clk 0:00:03]}  Bxh2 {[%clk 0:00:14]} 40. Be7 {[%clk 0:00:03]}  Bc7 {[%clk 0:00:04]} 41. Bxc5 {[%clk 0:00:03]}  Kb7 {[%clk 0:00:05]} 42. Bd4 {[%clk 0:00:02]}  Bf4 {[%clk 0:00:03]} 43. c5 {[%clk 0:00:03]}  Kc7 {[%clk 0:00:03]} 44. c6 {[%clk 0:00:04]}  Bd6 {[%clk 0:00:03]} 45. Be3 {[%clk 0:00:03]}  Bb4 {[%clk 0:00:03]} 46. Bf4+ {[%clk 0:00:03]}  Kb6 {[%clk 0:00:03]} 47. c7 {[%clk 0:00:03]}  Kb7 {[%clk 0:00:03]} 48. Kg3 {[%clk 0:00:04]}  Bc5 {[%clk 0:00:03]} 49. Bd2 {[%clk 0:00:03]}  Bb6 {[%clk 0:00:04]} 50. Bf4 {[%clk 0:00:02]}  Bxc7 {[%clk 0:00:04]} 0-1


[Site "https://www.chess.com"]

[Event "Titled Tuesday Blitz April 19 Late 2022"]
[White "Yoo, Christopher Woojin"]
[Black "Lewtak, Damian"]
[WhiteFideId "30909694"]
[BlackFideId "1141724"]
[WhiteElo "2105"]
[BlackElo "2362"]
[Result "1-0"]
[Round "10"]
[TimeControl "180+1"]
[Date "2022.04.19"]
[WhiteClock "0:00:30"]
[BlackClock "0:01:20"]

1. e4 {[%clk 0:03:00]}  c5 {[%clk 0:02:56]} 2. Nf3 {[%clk 0:03:00]}  d6 {[%clk 0:02:57]} 3. d4 {[%clk 0:03:01]}  cxd4 {[%clk 0:02:58]} 4. Nxd4 {[%clk 0:03:02]}  Nf6 {[%clk 0:02:58]} 5. Nc3 {[%clk 0:03:02]}  Nc6 {[%clk 0:02:59]} 6. Bg5 {[%clk 0:03:02]}  e6 {[%clk 0:02:59]} 7. Qd3 {[%clk 0:03:02]}  a6 {[%clk 0:02:54]} 8. O-O-O {[%clk 0:03:02]}  Bd7 {[%clk 0:02:54]} 9. Nxc6 {[%clk 0:03:03]}  Bxc6 {[%clk 0:02:55]} 10. f4 {[%clk 0:02:51]}  Be7 {[%clk 0:02:53]} 11. Qg3 {[%clk 0:02:36]}  h6 {[%clk 0:02:49]} 12. Bxf6 {[%clk 0:02:34]}  gxf6 {[%clk 0:02:43]} 13. Qg7 {[%clk 0:02:31]}  Rf8 {[%clk 0:02:43]} 14. Qxh6 {[%clk 0:02:32]}  Qa5 {[%clk 0:02:41]} 15. Bd3 {[%clk 0:02:29]}  Kd7 {[%clk 0:02:35]} 16. Qh3 {[%clk 0:02:28]}  b5 {[%clk 0:02:30]} 17. Kb1 {[%clk 0:02:25]}  Rh8 {[%clk 0:02:28]} 18. Qe3 {[%clk 0:02:21]}  b4 {[%clk 0:02:27]} 19. Ne2 {[%clk 0:02:20]}  Kc7 {[%clk 0:02:25]} 20. f5 {[%clk 0:01:44]}  e5 {[%clk 0:02:14]} 21. Bc4 {[%clk 0:01:43]}  Rh7 {[%clk 0:02:11]} 22. Bd5 {[%clk 0:01:42]}  Qb6 {[%clk 0:02:09]} 23. Qf3 {[%clk 0:01:38]}  a5 {[%clk 0:02:07]} 24. c3 {[%clk 0:01:31]}  Rb8 {[%clk 0:02:03]} 25. Bxc6 {[%clk 0:01:20]}  bxc3 {[%clk 0:01:53]} 26. Qxc3 {[%clk 0:01:13]}  Qxc6 {[%clk 0:01:53]} 27. Qxa5+ {[%clk 0:01:08]}  Kd7 {[%clk 0:01:53]} 28. Nc3 {[%clk 0:01:00]}  Bd8 {[%clk 0:01:51]} 29. Qd5 {[%clk 0:00:59]}  Qb6 {[%clk 0:01:46]} 30. Rd2 {[%clk 0:00:54]}  Be7 {[%clk 0:01:45]} 31. Qc4 {[%clk 0:00:49]}  Qb4 {[%clk 0:01:37]} 32. Qd3 {[%clk 0:00:38]}  Bd8 {[%clk 0:01:29]} 33. Nd5 {[%clk 0:00:34]}  Qb5 {[%clk 0:01:22]} 34. Qxb5+ {[%clk 0:00:31]}  Rxb5 {[%clk 0:01:21]} 35. h3 {[%clk 0:00:31]}  Rc5 {[%clk 0:01:20]} 36. Rc2 {[%clk 0:00:30]} 1-0


[Site "https://www.chess.com"]

[Event "Titled Tuesday Blitz April 19 Late 2022"]
[White "Zhao, Jun"]
[Black "Wagner, Dennis"]
[WhiteFideId "8602522"]
[BlackFideId "24650684"]
[WhiteElo "2547"]
[BlackElo "2355"]
[Result "0-1"]
[Round "10"]
[TimeControl "180+1"]
[Date "2022.04.19"]
[WhiteClock "0:00:03"]
[BlackClock "0:00:07"]

1. d4 {[%clk 0:03:00]}  Nf6 {[%clk 0:02:58]} 2. c4 {[%clk 0:02:59]}  e6 {[%clk 0:02:58]} 3. Nf3 {[%clk 0:02:57]}  d5 {[%clk 0:02:58]} 4. Nc3 {[%clk 0:02:58]}  c6 {[%clk 0:02:57]} 5. e3 {[%clk 0:02:57]}  Nbd7 {[%clk 0:02:57]} 6. Qc2 {[%clk 0:02:56]}  Bd6 {[%clk 0:02:56]} 7. Bd2 {[%clk 0:02:54]}  O-O {[%clk 0:02:51]} 8. a3 {[%clk 0:02:54]}  Qe7 {[%clk 0:02:49]} 9. h3 {[%clk 0:02:49]}  Re8 {[%clk 0:02:45]} 10. O-O-O {[%clk 0:02:45]}  dxc4 {[%clk 0:02:38]} 11. Bxc4 {[%clk 0:02:45]}  b5 {[%clk 0:02:39]} 12. Bd3 {[%clk 0:02:42]}  a5 {[%clk 0:02:37]} 13. Ne4 {[%clk 0:02:30]}  b4 {[%clk 0:02:34]} 14. a4 {[%clk 0:02:19]}  c5 {[%clk 0:02:31]} 15. Kb1 {[%clk 0:02:06]}  Bb7 {[%clk 0:02:24]} 16. Nxd6 {[%clk 0:02:01]}  Qxd6 {[%clk 0:02:23]} 17. dxc5 {[%clk 0:01:59]}  Nxc5 {[%clk 0:02:20]} 18. Bc1 {[%clk 0:01:33]}  Nxd3 {[%clk 0:02:13]} 19. Rxd3 {[%clk 0:01:33]}  Qb6 {[%clk 0:02:04]} 20. Nd2 {[%clk 0:01:29]}  Rac8 {[%clk 0:02:04]} 21. Qd1 {[%clk 0:01:27]}  Ne4 {[%clk 0:01:51]} 22. Qe2 {[%clk 0:01:03]}  Nxd2+ {[%clk 0:01:22]} 23. Rxd2 {[%clk 0:01:02]}  Be4+ {[%clk 0:01:09]} 24. Ka1 {[%clk 0:01:00]}  Qc6 {[%clk 0:01:05]} 25. b3 {[%clk 0:01:00]}  Qc3+ {[%clk 0:01:05]} 26. Rb2 {[%clk 0:00:45]}  Red8 {[%clk 0:01:05]} 27. f3 {[%clk 0:00:35]}  Bc2 {[%clk 0:01:04]} 28. Ka2 {[%clk 0:00:32]}  Rd3 {[%clk 0:01:00]} 29. Ka1 {[%clk 0:00:27]}  Rd7 {[%clk 0:00:22]} 30. Ka2 {[%clk 0:00:26]}  Rd3 {[%clk 0:00:13]} 31. Ka1 {[%clk 0:00:25]}  Qc6 {[%clk 0:00:09]} 32. Ka2 {[%clk 0:00:20]}  Bxb3+ {[%clk 0:00:07]} 33. Kb1 {[%clk 0:00:13]}  Rc3 {[%clk 0:00:07]} 34. Bd2 {[%clk 0:00:03]}  Bc2+ {[%clk 0:00:07]} 0-1


[Site "https://www.chess.com"]